{"text_format":"3","workbook":"xlsx","n_sheets":2,"sheets":["list","data"],"read":"whole","date_system":"1900"}

{"sheet":"list","index":0,"n_rows":69,"n_cols":11,"rows_kept":69,"merged":[[0,0,0,10]]}
["Протокол школьного этапа олимпиады по Биологии"]
["№","код участника","Пол","Дата рождения","Класс","Класс участия","Балл","Макс. Балл","Статус","Призер МЭ прошлого года","Учитель"]
[1,3,6,7,9,10,11,12,13,14,15]
[1,5101,"ж","2012-04-18",5,5,3.4,25,"участник",null,"Усманова Рамзия Асыловна"]
[2,5102,"м","2012-05-28",5,5,12,25,"участник",null,"Усманова Рамзия Асыловна"]
[3,5103,"м","2011-12-06",5,5,8.8,{"$f":"$H$4","v":25},"участник",null,"Усманова Рамзия Асыловна"]
[4,5104,"ж","2012-05-16",5,5,13.6,25,"призер",null,"Усманова Рамзия Асыловна"]
[5,5105,"м","2012-08-01",5,5,5.4,25,"участник",null,"Усманова Рамзия Асыловна"]
[6,5201,"ж","2012-10-01",5,5,6.8,25,"участник",null,"Усманова Рамзия Асыловна"]
[7,5202,"ж","2012-08-24",5,5,7.4,25,"участник",null,"Усманова Рамзия Асыловна"]
[8,5203,"м","2011-12-24",5,5,4.6,25,"участник",null,"Усманова Рамзия Асыловна"]
[9,5301,"ж","2012-03-03",5,5,7.2,25,"участник",null,"Усманова Рамзия Асыловна"]
[10,5302,"м","2012-09-12",5,5,4.4,25,"участник",null,"Усманова Рамзия Асыловна"]
[11,5303,"ж","2012-04-14",5,5,4.8,25,"участник",null,"Усманова Рамзия Асыловна"]
[12,5304,"ж","2012-03-23",5,5,4.4,25,"участник",null,"Усманова Рамзия Асыловна"]
[13,5305,"м","2012-02-29",5,5,4.4,25,"участник",null,"Усманова Рамзия Асыловна"]
[14,6101,"ж","2011-01-28",6,6,12.8,25,"участник",null,"Усманова Рамзия Асыловна"]
[15,6102,"м","2011-01-22",6,6,8.6,25,"участник",null,"Усманова Рамзия Асыловна"]
[16,6103,"ж","2010-07-16",6,6,11.4,25,"участник",null,"Усманова Рамзия Асыловна"]
[17,6104,"ж","2011-04-25",6,6,12.8,25,"участник",null,"Усманова Рамзия Асыловна"]
[18,6105,"м","2011-09-08",6,6,13.8,25,"призер",null,"Усманова Рамзия Асыловна"]
[19,6201,"ж","2010-11-24",6,6,9.6,25,"участник",null,"Усманова Рамзия Асыловна"]
[20,6202,"м","2011-04-06",6,6,8.2,25,"участник",null,"Усманова Рамзия Асыловна"]
[21,6203,"ж","2011-06-03",6,6,5.8,25,"участник",null,"Усманова Рамзия Асыловна"]
[22,6204,"ж","2011-12-19",6,6,9,25,"участник",null,"Усманова Рамзия Асыловна"]
[23,6205,"м","2011-09-02",6,6,6.8,25,"участник",null,"Усманова Рамзия Асыловна"]
[24,6301,"ж","2011-06-13",6,6,9.2,25,"участник",null,"Усманова Рамзия Асыловна"]
[25,6302,"ж","2011-01-08",6,6,6.2,25,"участник",null,"Усманова Рамзия Асыловна"]
[26,6303,"м","2011-02-03",6,6,4,25,"участник",null,"Усманова Рамзия Асыловна"]
[27,6304,"м","2011-09-04",6,6,6.8,25,"участник",null,"Усманова Рамзия Асыловна"]
[28,6305,"ж","2010-09-09",6,6,12.6,25,"участник",null,"Усманова Рамзия Асыловна"]
[29,7101,"ж","2010-08-17",7,7,17.2,30,"участник",null,"Усманова Рамзия Асыловна"]
[30,7102,"ж","2010-09-25",7,7,11.4,30,"участник",null,"Усманова Рамзия Асыловна"]
[31,7103,"ж","2010-01-02",7,7,13.8,{"$f":"$H$32","v":30},"участник",null,"Усманова Рамзия Асыловна"]
[32,7104,"м","2009-11-24",7,7,6.4,30,"участник",null,"Усманова Рамзия Асыловна"]
[33,7105,"ж","2010-10-03",7,7,18.2,30,"призер",null,"Усманова Рамзия Асыловна"]
[34,7201,"ж","2010-01-06",7,7,17.4,30,"участник",null,"Усманова Рамзия Асыловна"]
[35,7202,"ж","2010-08-12",7,7,17.4,30,"участник",null,"Усманова Рамзия Асыловна"]
[36,7203,"м","2010-01-18",7,7,16.2,30,"участник",null,"Усманова Рамзия Асыловна"]
[37,7204,"ж","2010-03-15",7,7,12.4,30,"участник",null,"Усманова Рамзия Асыловна"]
[38,7205,"м","2010-05-24",7,7,10.6,30,"участник",null,"Усманова Рамзия Асыловна"]
[39,7301,"ж","2010-11-03",7,7,18.4,30,"призер",null,"Усманова Рамзия Асыловна"]
[40,7302,"ж","2010-05-27",7,7,11,30,"участник",null,"Усманова Рамзия Асыловна"]
[41,7303,"м","2010-01-29",7,7,15.2,30,"участник",null,"Усманова Рамзия Асыловна"]
[42,7304,"ж","2010-03-12",7,7,13.8,30,"участник",null,"Усманова Рамзия Асыловна"]
[43,7305,"ж","2010-11-11",7,7,18.4,30,"призер",null,"Усманова Рамзия Асыловна"]
[44,8101,"м","2009-06-08",8,8,7.2,33,"участник",null,"Усманова Рамзия Асыловна"]
[45,8102,"м","2009-02-05",8,8,6.2,33,"участник",null,"Усманова Рамзия Асыловна"]
[46,8103,"ж","2009-10-31",8,8,3.8,{"$f":"$H$47","v":33},"участник",null,"Усманова Рамзия Асыловна"]
[47,8104,"м","2009-02-24",8,8,6.8,33,"участник",null,"Усманова Рамзия Асыловна"]
[48,8105,"м","2009-12-08",8,8,9.8,33,"участник",null,"Усманова Рамзия Асыловна"]
[49,8201,"ж","2009-02-02",8,8,11.8,33,"участник",null,"Усманова Рамзия Асыловна"]
[50,8202,"ж","2009-08-03",8,8,16.2,33,"участник",null,"Усманова Рамзия Асыловна"]
[51,8203,"м","2009-09-10",8,8,7.8,33,"участник",null,"Усманова Рамзия Асыловна"]
[52,8204,"м","2009-05-19",8,8,11.6,33,"участник",null,"Усманова Рамзия Асыловна"]
[53,8205,"м","2009-01-29",8,8,13.6,33,"участник",null,"Усманова Рамзия Асыловна"]
[54,8301,"м","2009-03-21",8,8,10.8,33,"участник",null,"Усманова Рамзия Асыловна"]
[55,8302,"ж","2009-11-16",8,8,10.4,33,"участник",null,"Усманова Рамзия Асыловна"]
[56,8303,"м","2008-10-02",8,8,8.4,33,"участник",null,"Усманова Рамзия Асыловна"]
[57,8304,"ж","2009-02-21",8,8,11,33,"участник",null,"Усманова Рамзия Асыловна"]
[58,9101,"м","2008-10-06",9,9,20.7,57,"участник",null,"Усманова Рамзия Асыловна"]
[59,9102,"м","2008-09-13",9,9,30.4,57,"призер",null,"Усманова Рамзия Асыловна"]
[60,9103,"ж","14.05..2008",9,9,20.6,{"$f":"$H$61","v":57},"участник",null,"Усманова Рамзия Асыловна"]
[61,9104,"ж","2008-06-24",9,9,25.8,57,"участник",null,"Усманова Рамзия Асыловна"]
[62,9201,"м","2008-12-24",9,9,24.3,57,"участник",null,"Усманова Рамзия Асыловна"]
[63,9202,"ж","2008-04-30",9,9,19.7,57,"участник",null,"Усманова Рамзия Асыловна"]
[64,9203,"м","2007-11-16",9,9,41.5,57,"победитель",null,"Усманова Рамзия Асыловна"]
[65,9204,"ж","2008-06-23",9,9,20,57,"участник",null,"Усманова Рамзия Асыловна"]
[66,9205,"м","2008-01-03",9,9,19,57,"участник",null,"Усманова Рамзия Асыловна"]

{"sheet":"data","index":1,"n_rows":25,"n_cols":4,"rows_kept":25}
[]
["Техника, технология и техническое творчество .  Ручная обработка древесины"]
["Техника, технология и техническое творчество .  Ручная обработка металла"]
["Техника, технология и техническое творчество .  Механическая обработка древесины"]
["Техника, технология и техническое творчество .  Механическая обработка металла"]
["Техника, технология и техническое творчество .  Электротехника"]
["Техника, технология и техническое творчество .  Робототехника"]
["Техника, технология и техническое творчество .  3d - моделирование и печать"]
["Техника, технология и техническое творчество .  Обработка материалов на лазерно-гравировальной машине"]
["Техника, технология и техническое творчество .  Промышленный дизайн"]
["Культура дома, дизайн и технологии .  Обработка швейного изделия или узла + моделирование швейных изделий"]
["Культура дома, дизайн и технологии .  Обработка швейного изделия или узла + моделирование швейных изделий с использованием графических редакторов"]
["Культура дома, дизайн и технологии .  Обработка швейного изделия или узла на швейно-вышивальном оборудовании + моделирование швейных изделий"]
["Культура дома, дизайн и технологии .  Обработка швейного изделия или узла на швейно-вышивальном оборудовании + моделирование швейных изделий с использованием графических редакторов"]
["Культура дома, дизайн и технологии .  Робототехника"]
["Культура дома, дизайн и технологии .  3d - моделирование и печать"]
["Культура дома, дизайн и технологии .  Обработка материалов на лазерно-гравировальной машине"]
["Культура дома, дизайн и технологии .  Промышленный дизайн"]
["Роботехника .  "]
["Информационная безопасность ."]
[]
[]
["участник"]
["призер",null,"да","да"]
["победитель",null,null,"нет"]